[Event "Titled Tuesday Blitz August 09 Early 2022"]
[White "Flynn, Jacob"]
[Black "Quirke, Jeffrey"]
[WhiteFideId "2509393"]
[BlackFideId "2013029"]
[WhiteElo "1920"]
[BlackElo "2224"]
[Result "1-0"]
[Round "05"]
[TimeControl "180+1"]
[Date "2022.08.09"]
[WhiteClock "0:01:45"]
[BlackClock "0:00:07"]

1. d4 {[%clk 0:03:00]}  d5 {[%clk 0:02:59]} 2. c4 {[%clk 0:02:56]}  e6 {[%clk 0:02:59]} 3. Nc3 {[%clk 0:02:54]}  Bb4 {[%clk 0:02:59]} 4. cxd5 {[%clk 0:02:49]}  exd5 {[%clk 0:02:59]} 5. Qc2 {[%clk 0:02:43]}  Ne7 {[%clk 0:02:46]} 6. Bg5 {[%clk 0:02:42]}  Bf5 {[%clk 0:02:23]} 7. Qb3 {[%clk 0:02:40]}  a5 {[%clk 0:01:46]} 8. e3 {[%clk 0:02:39]}  c6 {[%clk 0:01:28]} 9. Be2 {[%clk 0:02:34]}  Nd7 {[%clk 0:01:23]} 10. Nf3 {[%clk 0:02:34]}  f6 {[%clk 0:01:18]} 11. Bf4 {[%clk 0:02:32]}  O-O {[%clk 0:01:18]} 12. h3 {[%clk 0:02:30]}  Ng6 {[%clk 0:01:03]} 13. Bh2 {[%clk 0:02:26]}  Qb6 {[%clk 0:01:01]} 14. O-O {[%clk 0:02:24]}  Be7 {[%clk 0:00:54]} 15. Qxb6 {[%clk 0:02:18]}  Nxb6 {[%clk 0:00:54]} 16. g4 {[%clk 0:02:13]}  Be6 {[%clk 0:00:52]} 17. Rfc1 {[%clk 0:02:14]}  Rfe8 {[%clk 0:00:40]} 18. b3 {[%clk 0:02:10]}  Bf8 {[%clk 0:00:40]} 19. Rab1 {[%clk 0:02:07]}  Ba3 {[%clk 0:00:39]} 20. Rc2 {[%clk 0:02:07]}  Bf7 {[%clk 0:00:36]} 21. Na4 {[%clk 0:02:06]}  Nd7 {[%clk 0:00:32]} 22. Nc5 {[%clk 0:02:03]}  Nxc5 {[%clk 0:00:27]} 23. dxc5 {[%clk 0:02:04]}  Ne5 {[%clk 0:00:19]} 24. Nd4 {[%clk 0:01:58]}  Nd7 {[%clk 0:00:18]} 25. Bd6 {[%clk 0:01:58]}  b6 {[%clk 0:00:13]} 26. Nxc6 {[%clk 0:01:58]}  Bxc5 {[%clk 0:00:10]} 27. Bxc5 {[%clk 0:01:54]}  bxc5 {[%clk 0:00:10]} 28. Bb5 {[%clk 0:01:51]}  Kf8 {[%clk 0:00:09]} 29. Nxa5 {[%clk 0:01:49]}  Rxa5 {[%clk 0:00:08]} 30. Bxd7 {[%clk 0:01:48]}  Rd8 {[%clk 0:00:07]} 31. Bf5 {[%clk 0:01:47]}  Rxa2 {[%clk 0:00:06]} 32. Rxa2 {[%clk 0:01:46]}  d4 {[%clk 0:00:07]} 33. exd4 {[%clk 0:01:45]} 1-0


[Site "https://www.chess.com"]

[Event "Titled Tuesday Blitz August 09 Early 2022"]
[White "Garrido, Denis"]
[Black "Jaskolka, Tomasz"]
[WhiteFideId "601217"]
[BlackFideId "1170791"]
[WhiteElo "2335"]
[BlackElo "2073"]
[Result "1-0"]
[Round "05"]
[TimeControl "180+1"]
[Date "2022.08.09"]
[WhiteClock "0:01:17"]
[BlackClock "0:00:05"]

1. e4 {[%clk 0:03:00]}  e6 {[%clk 0:02:59]} 2. d4 {[%clk 0:03:00]}  d5 {[%clk 0:03:00]} 3. e5 {[%clk 0:03:01]}  c5 {[%clk 0:03:00]} 4. c3 {[%clk 0:03:01]}  Nc6 {[%clk 0:03:00]} 5. Nf3 {[%clk 0:03:02]}  Bd7 {[%clk 0:03:00]} 6. Be2 {[%clk 0:03:01]}  Nge7 {[%clk 0:02:55]} 7. Na3 {[%clk 0:03:01]}  Nf5 {[%clk 0:02:55]} 8. Nc2 {[%clk 0:03:01]}  Be7 {[%clk 0:02:53]} 9. O-O {[%clk 0:02:59]}  cxd4 {[%clk 0:02:53]} 10. cxd4 {[%clk 0:02:59]}  O-O {[%clk 0:02:50]} 11. Ne3 {[%clk 0:02:52]}  Qb6 {[%clk 0:02:47]} 12. Nxf5 {[%clk 0:02:50]}  exf5 {[%clk 0:02:48]} 13. Rb1 {[%clk 0:02:48]}  Be6 {[%clk 0:02:44]} 14. h4 {[%clk 0:02:41]}  h6 {[%clk 0:02:24]} 15. Be3 {[%clk 0:02:38]}  a5 {[%clk 0:02:24]} 16. g3 {[%clk 0:02:32]}  a4 {[%clk 0:02:22]} 17. Ne1 {[%clk 0:02:23]}  f4 {[%clk 0:02:06]} 18. gxf4 {[%clk 0:02:18]}  Bxh4 {[%clk 0:02:04]} 19. Nf3 {[%clk 0:02:16]}  Bd8 {[%clk 0:01:59]} 20. Bd3 {[%clk 0:02:16]}  Ne7 {[%clk 0:01:58]} 21. Nh4 {[%clk 0:02:03]}  g6 {[%clk 0:01:30]} 22. Qf3 {[%clk 0:01:41]}  Kh7 {[%clk 0:01:28]} 23. Kg2 {[%clk 0:01:38]}  h5 {[%clk 0:01:08]} 24. Rh1 {[%clk 0:01:27]}  Ng8 {[%clk 0:01:02]} 25. Qxh5+ {[%clk 0:01:23]}  Kg7 {[%clk 0:00:25]} 26. Nxg6 {[%clk 0:01:20]}  Bh3+ {[%clk 0:00:04]} 27. Rxh3 {[%clk 0:01:18]}  fxg6 {[%clk 0:00:05]} 28. Qh7# {[%clk 0:01:17]} 1-0


[Site "https://www.chess.com"]

[Event "Titled Tuesday Blitz August 09 Early 2022"]
[White "Gatterer, Florian"]
[Black "Begunov, Konstantin"]
[WhiteFideId "811688"]
[BlackFideId "4118510"]
[WhiteElo "2218"]
[BlackElo "2262"]
[Result "0-1"]
[Round "05"]
[TimeControl "180+1"]
[Date "2022.08.09"]
[WhiteClock "0:00:09"]
[BlackClock "0:00:13"]

1. c4 {[%clk 0:03:00]}  c6 {[%clk 0:02:57]} 2. Nf3 {[%clk 0:02:59]}  d5 {[%clk 0:02:58]} 3. e3 {[%clk 0:03:00]}  Nf6 {[%clk 0:02:58]} 4. Nc3 {[%clk 0:03:00]}  Bg4 {[%clk 0:02:57]} 5. Qb3 {[%clk 0:02:55]}  Bc8 {[%clk 0:02:57]} 6. cxd5 {[%clk 0:02:54]}  cxd5 {[%clk 0:02:57]} 7. d4 {[%clk 0:02:54]}  e6 {[%clk 0:02:57]} 8. Ne5 {[%clk 0:02:43]}  Nbd7 {[%clk 0:02:50]} 9. f4 {[%clk 0:02:43]}  Bd6 {[%clk 0:02:47]} 10. Bd3 {[%clk 0:02:40]}  O-O {[%clk 0:02:47]} 11. O-O {[%clk 0:02:39]}  b6 {[%clk 0:02:38]} 12. Bd2 {[%clk 0:02:29]}  Bb7 {[%clk 0:02:38]} 13. Nb5 {[%clk 0:02:29]}  Bb8 {[%clk 0:02:33]} 14. Bb4 {[%clk 0:02:21]}  Re8 {[%clk 0:02:24]} 15. Nd6 {[%clk 0:01:58]}  Bxd6 {[%clk 0:02:10]} 16. Bxd6 {[%clk 0:01:57]}  Ne4 {[%clk 0:02:09]} 17. Bb5 {[%clk 0:01:16]}  Nxd6 {[%clk 0:01:45]} 18. Bxd7 {[%clk 0:00:59]}  Re7 {[%clk 0:01:44]} 19. Bb5 {[%clk 0:00:58]}  Rc8 {[%clk 0:01:35]} 20. Rac1 {[%clk 0:00:51]}  Rec7 {[%clk 0:01:34]} 21. Rxc7 {[%clk 0:00:45]}  Qxc7 {[%clk 0:01:35]} 22. Bd3 {[%clk 0:00:45]}  Ne4 {[%clk 0:01:19]} 23. Bxe4 {[%clk 0:00:39]}  dxe4 {[%clk 0:01:19]} 24. f5 {[%clk 0:00:29]}  Bd5 {[%clk 0:01:15]} 25. Qa3 {[%clk 0:00:26]}  f6 {[%clk 0:00:47]} 26. Ng4 {[%clk 0:00:21]}  exf5 {[%clk 0:00:44]} 27. Rxf5 {[%clk 0:00:19]}  Be6 {[%clk 0:00:44]} 28. Rf4 {[%clk 0:00:19]}  Bxg4 {[%clk 0:00:44]} 29. Rxg4 {[%clk 0:00:19]}  Qc1+ {[%clk 0:00:44]} 30. Kf2 {[%clk 0:00:19]}  Rc2+ {[%clk 0:00:17]} 31. Kg3 {[%clk 0:00:19]}  Qd2 {[%clk 0:00:17]} 32. Qb3+ {[%clk 0:00:15]}  Kh8 {[%clk 0:00:14]} 33. Qf7 {[%clk 0:00:12]}  Qxg2+ {[%clk 0:00:13]} 34. Kf4 {[%clk 0:00:09]}  Qf3# {[%clk 0:00:13]} 0-1


[Site "https://www.chess.com"]

[Event "Titled Tuesday Blitz August 09 Early 2022"]
[White "Gil Alba, Hector Luis"]
[Black "Dilanyan, Grigor"]
[WhiteFideId "3504670"]
[BlackFideId "13303570"]
[WhiteElo "2331"]
[BlackElo "2264"]
[Result "1/2-1/2"]
[Round "05"]
[TimeControl "180+1"]
[Date "2022.08.09"]
[WhiteClock "0:00:10"]
[BlackClock "0:00:05"]

1. e4 {[%clk 0:03:00]}  e5 {[%clk 0:02:57]} 2. Nf3 {[%clk 0:02:59]}  Nc6 {[%clk 0:02:58]} 3. Bb5 {[%clk 0:02:59]}  a6 {[%clk 0:02:57]} 4. Ba4 {[%clk 0:02:58]}  Nf6 {[%clk 0:02:58]} 5. d3 {[%clk 0:02:57]}  d6 {[%clk 0:02:57]} 6. O-O {[%clk 0:02:56]}  Be7 {[%clk 0:02:57]} 7. c3 {[%clk 0:02:55]}  O-O {[%clk 0:02:57]} 8. Nbd2 {[%clk 0:02:54]}  b5 {[%clk 0:02:55]} 9. Bb3 {[%clk 0:02:46]}  Na5 {[%clk 0:02:54]} 10. Bc2 {[%clk 0:02:41]}  c5 {[%clk 0:02:54]} 11. Re1 {[%clk 0:02:41]}  Be6 {[%clk 0:02:53]} 12. Nf1 {[%clk 0:02:40]}  b4 {[%clk 0:02:52]} 13. Ng3 {[%clk 0:02:38]}  Nc6 {[%clk 0:02:48]} 14. h3 {[%clk 0:02:35]}  Qd7 {[%clk 0:02:46]} 15. Nh4 {[%clk 0:02:30]}  g6 {[%clk 0:02:43]} 16. Qf3 {[%clk 0:02:20]}  Ne8 {[%clk 0:02:31]} 17. Nhf5 {[%clk 0:02:17]}  gxf5 {[%clk 0:02:25]} 18. exf5 {[%clk 0:02:16]}  Kh8 {[%clk 0:02:12]} 19. Bh6 {[%clk 0:02:05]}  Rg8 {[%clk 0:02:06]} 20. Ba4 {[%clk 0:01:52]}  Rc8 {[%clk 0:01:49]} 21. fxe6 {[%clk 0:01:37]}  Qxe6 {[%clk 0:01:50]} 22. Nf5 {[%clk 0:01:22]}  d5 {[%clk 0:01:14]} 23. Bf4 {[%clk 0:00:59]}  Bf6 {[%clk 0:01:02]} 24. Bh2 {[%clk 0:00:44]}  Ng7 {[%clk 0:00:27]} 25. Nh6 {[%clk 0:00:38]}  Rgf8 {[%clk 0:00:20]} 26. Ng4 {[%clk 0:00:34]}  e4 {[%clk 0:00:14]} 27. dxe4 {[%clk 0:00:27]}  Ne5 {[%clk 0:00:13]} 28. Qxf6 {[%clk 0:00:24]}  Qxf6 {[%clk 0:00:11]} 29. Nxf6 {[%clk 0:00:24]}  Nd3 {[%clk 0:00:11]} 30. exd5 {[%clk 0:00:22]}  Nxb2 {[%clk 0:00:07]} 31. Bb3 {[%clk 0:00:20]}  bxc3 {[%clk 0:00:07]} 32. d6 {[%clk 0:00:19]}  c4 {[%clk 0:00:07]} 33. Bc2 {[%clk 0:00:18]}  Ne6 {[%clk 0:00:07]} 34. d7 {[%clk 0:00:18]}  Rc5 {[%clk 0:00:07]} 35. Bd6 {[%clk 0:00:17]}  Rd8 {[%clk 0:00:06]} 36. Bxc5 {[%clk 0:00:16]}  Kg7 {[%clk 0:00:07]} 37. Rxe6 {[%clk 0:00:16]}  fxe6 {[%clk 0:00:07]} 38. Be7 {[%clk 0:00:15]}  Rxd7 {[%clk 0:00:06]} 39. Nxd7 {[%clk 0:00:15]}  Kf7 {[%clk 0:00:07]} 40. Ne5+ {[%clk 0:00:15]}  Kxe7 {[%clk 0:00:07]} 41. Nxc4 {[%clk 0:00:13]}  Nxc4 {[%clk 0:00:07]} 42. Rc1 {[%clk 0:00:12]}  Kd6 {[%clk 0:00:04]} 43. Bb3 {[%clk 0:00:12]}  Na3 {[%clk 0:00:04]} 44. Rxc3 {[%clk 0:00:12]}  a5 {[%clk 0:00:05]} 45. Re3 {[%clk 0:00:11]}  e5 {[%clk 0:00:04]} 46. Bg8 {[%clk 0:00:10]}  Nb5 {[%clk 0:00:04]} 47. Bxh7 {[%clk 0:00:09]}  Nd4 {[%clk 0:00:05]} 48. Bd3 {[%clk 0:00:09]}  Kd5 {[%clk 0:00:05]} 49. h4 {[%clk 0:00:09]}  Ke6 {[%clk 0:00:05]} 50. h5 {[%clk 0:00:10]}  Kf6 {[%clk 0:00:05]} 51. h6 {[%clk 0:00:10]}  a4 {[%clk 0:00:04]} 52. h7 {[%clk 0:00:10]}  Kg7 {[%clk 0:00:04]} 53. Rxe5 {[%clk 0:00:11]}  a3 {[%clk 0:00:05]} 54. Re8 {[%clk 0:00:11]}  Nf3+ {[%clk 0:00:04]} 55. gxf3 {[%clk 0:00:10]}  Kf7 {[%clk 0:00:05]} 56. h8=Q {[%clk 0:00:10]} 1/2-1/2


[Site "https://www.chess.com"]

[Event "Titled Tuesday Blitz August 09 Early 2022"]
[White "Gurel, Ediz"]
[Black "Sarana, Alexey"]
[WhiteFideId "44507356"]
[BlackFideId "24133795"]
[WhiteElo "1894"]
[BlackElo "2666"]
[Result "0-1"]
[Round "05"]
[TimeControl "180+1"]
[Date "2022.08.09"]
[WhiteClock "0:00:02"]
[BlackClock "0:00:56"]

1. e4 {[%clk 0:03:00]}  c5 {[%clk 0:03:00]} 2. Nf3 {[%clk 0:03:00]}  d6 {[%clk 0:03:00]} 3. d4 {[%clk 0:03:00]}  cxd4 {[%clk 0:03:01]} 4. Nxd4 {[%clk 0:03:01]}  Nf6 {[%clk 0:03:01]} 5. Nc3 {[%clk 0:03:01]}  a6 {[%clk 0:03:02]} 6. Be3 {[%clk 0:03:01]}  e5 {[%clk 0:03:02]} 7. Nf3 {[%clk 0:03:01]}  Qc7 {[%clk 0:03:02]} 8. a4 {[%clk 0:03:01]}  Be7 {[%clk 0:03:02]} 9. a5 {[%clk 0:03:01]}  O-O {[%clk 0:03:01]} 10. Be2 {[%clk 0:03:01]}  Bd8 {[%clk 0:03:02]} 11. O-O {[%clk 0:02:35]}  Nc6 {[%clk 0:03:02]} 12. Bb6 {[%clk 0:02:35]}  Qe7 {[%clk 0:03:02]} 13. Nd5 {[%clk 0:02:34]}  Nxd5 {[%clk 0:03:02]} 14. Bxd8 {[%clk 0:02:27]}  Nxd8 {[%clk 0:02:08]} 15. Qxd5 {[%clk 0:02:01]}  Be6 {[%clk 0:02:08]} 16. Qd2 {[%clk 0:02:01]}  Nc6 {[%clk 0:02:06]} 17. Rad1 {[%clk 0:01:54]}  Rad8 {[%clk 0:02:07]} 18. c4 {[%clk 0:01:55]}  Bg4 {[%clk 0:02:05]} 19. b4 {[%clk 0:01:35]}  g6 {[%clk 0:01:51]} 20. Qc3 {[%clk 0:01:03]}  Qf6 {[%clk 0:01:41]} 21. Rd3 {[%clk 0:00:51]}  Rc8 {[%clk 0:01:37]} 22. Rfd1 {[%clk 0:00:45]}  Rfd8 {[%clk 0:01:37]} 23. h3 {[%clk 0:00:38]}  Bxf3 {[%clk 0:01:37]} 24. Rxf3 {[%clk 0:00:39]}  Qh4 {[%clk 0:01:36]} 25. Re3 {[%clk 0:00:30]}  Rd7 {[%clk 0:01:34]} 26. c5 {[%clk 0:00:23]}  Nd4 {[%clk 0:01:25]} 27. Bc4 {[%clk 0:00:23]}  dxc5 {[%clk 0:01:24]} 28. bxc5 {[%clk 0:00:23]}  Rxc5 {[%clk 0:01:19]} 29. Bxf7+ {[%clk 0:00:22]}  Rxf7 {[%clk 0:01:19]} 30. Qxc5 {[%clk 0:00:23]}  Qxf2+ {[%clk 0:01:19]} 31. Kh1 {[%clk 0:00:20]}  Qxe3 {[%clk 0:01:18]} 32. Qxe5 {[%clk 0:00:20]}  Nc6 {[%clk 0:01:16]} 33. Qe6 {[%clk 0:00:17]}  Qf4 {[%clk 0:01:11]} 34. Rd7 {[%clk 0:00:15]}  Qf1+ {[%clk 0:01:09]} 35. Kh2 {[%clk 0:00:15]}  Qf6 {[%clk 0:01:09]} 36. Qb3 {[%clk 0:00:09]}  Kg7 {[%clk 0:01:06]} 37. Rxb7 {[%clk 0:00:09]}  Ne5 {[%clk 0:01:01]} 38. Rxf7+ {[%clk 0:00:08]}  Qxf7 {[%clk 0:01:02]} 39. Qb6 {[%clk 0:00:08]}  Qf6 {[%clk 0:01:00]} 40. Qc7+ {[%clk 0:00:08]}  Kh6 {[%clk 0:01:00]} 41. Qc1+ {[%clk 0:00:08]}  g5 {[%clk 0:01:00]} 42. Qc7 {[%clk 0:00:09]}  Kg6 {[%clk 0:00:58]} 43. Qc8 {[%clk 0:00:09]}  h5 {[%clk 0:00:57]} 44. Kg1 {[%clk 0:00:08]}  g4 {[%clk 0:00:56]} 45. hxg4 {[%clk 0:00:08]}  Nxg4 {[%clk 0:00:56]} 46. Qg8+ {[%clk 0:00:02]}  Kh6 {[%clk 0:00:56]} 47. Qa2 {[%clk 0:00:02]}  Qd4+ {[%clk 0:00:55]} 48. Kf1 {[%clk 0:00:02]}  Qd1# {[%clk 0:00:56]} 0-1


[Site "https://www.chess.com"]

[Event "Titled Tuesday Blitz August 09 Early 2022"]
[White "Gurevich, Dmitry"]
[Black "Gabdrakhmanov, Azat"]
[WhiteFideId "2000407"]
[BlackFideId "34189197"]
[WhiteElo "2506"]
[BlackElo "2293"]
[Result "1-0"]
[Round "05"]
[TimeControl "180+1"]
[Date "2022.08.09"]
[WhiteClock "0:00:14"]
[BlackClock "0:00:04"]

1. d4 {[%clk 0:02:54]}  Nf6 {[%clk 0:02:59]} 2. c4 {[%clk 0:02:53]}  g6 {[%clk 0:03:00]} 3. Nc3 {[%clk 0:02:52]}  Bg7 {[%clk 0:03:00]} 4. e4 {[%clk 0:02:52]}  O-O {[%clk 0:03:01]} 5. Nf3 {[%clk 0:02:51]}  d6 {[%clk 0:03:02]} 6. Be2 {[%clk 0:02:51]}  e5 {[%clk 0:03:02]} 7. O-O {[%clk 0:02:51]}  Nc6 {[%clk 0:03:03]} 8. d5 {[%clk 0:02:51]}  Ne7 {[%clk 0:03:03]} 9. Ne1 {[%clk 0:02:52]}  Nd7 {[%clk 0:03:02]} 10. Be3 {[%clk 0:02:52]}  f5 {[%clk 0:03:02]} 11. f3 {[%clk 0:02:53]}  f4 {[%clk 0:03:02]} 12. Bf2 {[%clk 0:02:54]}  g5 {[%clk 0:03:03]} 13. Nb5 {[%clk 0:02:54]}  b6 {[%clk 0:02:59]} 14. b4 {[%clk 0:02:53]}  a6 {[%clk 0:02:55]} 15. Nc3 {[%clk 0:02:53]}  Nf6 {[%clk 0:02:54]} 16. c5 {[%clk 0:02:52]}  Ng6 {[%clk 0:02:51]} 17. a4 {[%clk 0:02:45]}  h5 {[%clk 0:02:50]} 18. h3 {[%clk 0:02:43]}  Rf7 {[%clk 0:02:32]} 19. Nd3 {[%clk 0:02:40]}  Bf8 {[%clk 0:02:29]} 20. cxb6 {[%clk 0:02:36]}  cxb6 {[%clk 0:02:29]} 21. Nb2 {[%clk 0:02:36]}  Rg7 {[%clk 0:02:24]} 22. Nc4 {[%clk 0:02:36]}  Rb8 {[%clk 0:02:24]} 23. a5 {[%clk 0:02:32]}  b5 {[%clk 0:02:16]} 24. Nb6 {[%clk 0:02:32]}  g4 {[%clk 0:02:13]} 25. hxg4 {[%clk 0:02:22]}  hxg4 {[%clk 0:02:12]} 26. fxg4 {[%clk 0:02:18]}  Ne7 {[%clk 0:01:48]} 27. Nxc8 {[%clk 0:01:59]}  Rxc8 {[%clk 0:01:48]} 28. Rc1 {[%clk 0:01:56]}  Qd7 {[%clk 0:01:41]} 29. Qd3 {[%clk 0:01:49]}  Nxg4 {[%clk 0:01:03]} 30. Qh3 {[%clk 0:01:47]}  Rc7 {[%clk 0:01:00]} 31. Nxb5 {[%clk 0:01:37]}  Rxc1 {[%clk 0:00:45]} 32. Rxc1 {[%clk 0:01:36]}  axb5 {[%clk 0:00:45]} 33. a6 {[%clk 0:01:35]}  Nc8 {[%clk 0:00:41]} 34. Rc6 {[%clk 0:01:23]}  Be7 {[%clk 0:00:31]} 35. Kf1 {[%clk 0:01:11]}  Bd8 {[%clk 0:00:28]} 36. a7 {[%clk 0:00:54]}  Nxa7 {[%clk 0:00:27]} 37. Bxg4 {[%clk 0:00:43]}  Rxg4 {[%clk 0:00:21]} 38. Bxa7 {[%clk 0:00:41]}  f3 {[%clk 0:00:13]} 39. Bf2 {[%clk 0:00:23]}  fxg2+ {[%clk 0:00:12]} 40. Kg1 {[%clk 0:00:23]}  Kf8 {[%clk 0:00:07]} 41. Qh6+ {[%clk 0:00:20]}  Rg7 {[%clk 0:00:05]} 42. Rxd6 {[%clk 0:00:19]}  Qc7 {[%clk 0:00:06]} 43. Qh8+ {[%clk 0:00:17]}  Ke7 {[%clk 0:00:05]} 44. Qxg7+ {[%clk 0:00:16]}  Ke8 {[%clk 0:00:04]} 45. Re6+ {[%clk 0:00:15]}  Be7 {[%clk 0:00:04]} 46. Bc5 {[%clk 0:00:14]} 1-0


[Site "https://www.chess.com"]

[Event "Titled Tuesday Blitz August 09 Early 2022"]
[White "Hoffmann, Asa"]
[Black "Horcajuelo Rocamora, Martin"]
[WhiteFideId "2001470"]
[BlackFideId "24573027"]
[WhiteElo "2117"]
[BlackElo "1882"]
[Result "0-1"]
[Round "05"]
[TimeControl "180+1"]
[Date "2022.08.09"]
[WhiteClock "0:00:33"]
[BlackClock "0:00:38"]

1. d4 {[%clk 0:02:51]}  Nf6 {[%clk 0:02:53]} 2. Bg5 {[%clk 0:02:48]}  c5 {[%clk 0:02:47]} 3. d5 {[%clk 0:02:48]}  Qb6 {[%clk 0:02:47]} 4. Nc3 {[%clk 0:02:47]}  Qxb2 {[%clk 0:02:48]} 5. Bd2 {[%clk 0:02:47]}  Qb6 {[%clk 0:02:48]} 6. e4 {[%clk 0:02:46]}  d6 {[%clk 0:02:49]} 7. f4 {[%clk 0:02:46]}  Qd8 {[%clk 0:02:49]} 8. Nf3 {[%clk 0:02:44]}  g6 {[%clk 0:02:49]} 9. Bc4 {[%clk 0:02:43]}  Bg7 {[%clk 0:02:48]} 10. e5 {[%clk 0:02:43]}  dxe5 {[%clk 0:02:47]} 11. fxe5 {[%clk 0:02:43]}  Ng4 {[%clk 0:02:48]} 12. Qe2 {[%clk 0:02:37]}  O-O {[%clk 0:02:47]} 13. h3 {[%clk 0:02:36]}  Nh6 {[%clk 0:02:47]} 14. g4 {[%clk 0:02:31]}  a6 {[%clk 0:02:39]} 15. a4 {[%clk 0:02:30]}  Nd7 {[%clk 0:02:39]} 16. a5 {[%clk 0:02:29]}  Qc7 {[%clk 0:02:38]} 17. Bf4 {[%clk 0:02:27]}  Kh8 {[%clk 0:02:36]} 18. O-O {[%clk 0:02:24]}  f6 {[%clk 0:02:33]} 19. d6 {[%clk 0:02:23]}  exd6 {[%clk 0:02:32]} 20. exd6 {[%clk 0:02:22]}  Qd8 {[%clk 0:02:31]} 21. Rfe1 {[%clk 0:02:16]}  Nf7 {[%clk 0:02:29]} 22. Qe7 {[%clk 0:02:14]}  Nfe5 {[%clk 0:02:29]} 23. Bxe5 {[%clk 0:02:09]}  Nxe5 {[%clk 0:02:30]} 24. Rxe5 {[%clk 0:02:05]}  fxe5 {[%clk 0:02:31]} 25. Ng5 {[%clk 0:02:04]}  Bd7 {[%clk 0:02:12]} 26. Nd5 {[%clk 0:01:34]}  h6 {[%clk 0:01:48]} 27. Nf7+ {[%clk 0:01:30]}  Rxf7 {[%clk 0:01:29]} 28. Qxf7 {[%clk 0:01:30]}  Qe8 {[%clk 0:01:24]} 29. Ne7 {[%clk 0:01:28]}  Qxf7 {[%clk 0:01:23]} 30. Bxf7 {[%clk 0:01:28]}  e4 {[%clk 0:01:15]} 31. Re1 {[%clk 0:01:16]}  Bd4+ {[%clk 0:01:14]} 32. Kg2 {[%clk 0:01:15]}  Kg7 {[%clk 0:01:12]} 33. Bxg6 {[%clk 0:01:10]}  e3 {[%clk 0:01:11]} 34. Bf5 {[%clk 0:00:59]}  Bb5 {[%clk 0:01:04]} 35. Be4 {[%clk 0:00:55]}  Rd8 {[%clk 0:01:00]} 36. Bxb7 {[%clk 0:00:50]}  Kf6 {[%clk 0:00:56]} 37. Nf5 {[%clk 0:00:49]}  h5 {[%clk 0:00:56]} 38. Bd5 {[%clk 0:00:46]}  hxg4 {[%clk 0:00:54]} 39. hxg4 {[%clk 0:00:46]}  Ke5 {[%clk 0:00:54]} 40. c4 {[%clk 0:00:45]}  Bd7 {[%clk 0:00:53]} 41. Nxe3 {[%clk 0:00:44]}  Kxd6 {[%clk 0:00:52]} 42. Nf5+ {[%clk 0:00:43]}  Kc7 {[%clk 0:00:50]} 43. Kf3 {[%clk 0:00:42]}  Bc3 {[%clk 0:00:49]} 44. Rg1 {[%clk 0:00:41]}  Bxa5 {[%clk 0:00:49]} 45. Ne3 {[%clk 0:00:39]}  Rf8+ {[%clk 0:00:48]} 46. Ke2 {[%clk 0:00:39]}  Bc3 {[%clk 0:00:47]} 47. g5 {[%clk 0:00:38]}  Bd4 {[%clk 0:00:47]} 48. Be4 {[%clk 0:00:38]}  Re8 {[%clk 0:00:47]} 49. Kd3 {[%clk 0:00:38]}  Bc6 {[%clk 0:00:43]} 50. Nd5+ {[%clk 0:00:36]}  Bxd5 {[%clk 0:00:40]} 51. cxd5 {[%clk 0:00:36]}  Bxg1 {[%clk 0:00:39]} 52. g6 {[%clk 0:00:35]}  Bd4 {[%clk 0:00:39]} 53. Kc4 {[%clk 0:00:33]}  Kd6 {[%clk 0:00:38]} 0-1


[Site "https://www.chess.com"]

[Event "Titled Tuesday Blitz August 09 Early 2022"]
[White "Hua, Lefong"]
[Black "Nazari, Arad"]
[WhiteFideId "2602253"]
[BlackFideId "12577324"]
[WhiteElo "2616"]
[BlackElo "2129"]
[Result "0-1"]
[Round "05"]
[TimeControl "180+1"]
[Date "2022.08.09"]
[WhiteClock "0:00:54"]
[BlackClock "0:00:35"]

1. d4 {[%clk 0:03:00]}  Nf6 {[%clk 0:02:59]} 2. c4 {[%clk 0:02:59]}  g6 {[%clk 0:02:59]} 3. Nc3 {[%clk 0:02:56]}  d5 {[%clk 0:02:59]} 4. cxd5 {[%clk 0:02:56]}  Nxd5 {[%clk 0:02:59]} 5. e4 {[%clk 0:02:57]}  Nxc3 {[%clk 0:02:58]} 6. bxc3 {[%clk 0:02:58]}  Bg7 {[%clk 0:02:58]} 7. Nf3 {[%clk 0:02:58]}  c5 {[%clk 0:02:58]} 8. Rb1 {[%clk 0:02:57]}  O-O {[%clk 0:02:53]} 9. Be2 {[%clk 0:02:57]}  Nc6 {[%clk 0:02:53]} 10. d5 {[%clk 0:02:57]}  Ne5 {[%clk 0:02:54]} 11. Nxe5 {[%clk 0:02:57]}  Bxe5 {[%clk 0:02:55]} 12. Qd2 {[%clk 0:02:58]}  e6 {[%clk 0:02:49]} 13. f4 {[%clk 0:02:57]}  Bc7 {[%clk 0:02:48]} 14. O-O {[%clk 0:02:53]}  exd5 {[%clk 0:02:23]} 15. exd5 {[%clk 0:02:54]}  Ba5 {[%clk 0:02:21]} 16. f5 {[%clk 0:02:30]}  Bxf5 {[%clk 0:02:15]} 17. Rxb7 {[%clk 0:02:30]}  Qd6 {[%clk 0:02:11]} 18. Bf3 {[%clk 0:02:04]}  Rfb8 {[%clk 0:01:58]} 19. Rxb8+ {[%clk 0:01:58]}  Rxb8 {[%clk 0:01:59]} 20. Qf4 {[%clk 0:01:57]}  Qxf4 {[%clk 0:01:22]} 21. Bxf4 {[%clk 0:01:58]}  Rb1 {[%clk 0:01:16]} 22. d6 {[%clk 0:01:18]}  Rxf1+ {[%clk 0:00:55]} 23. Kxf1 {[%clk 0:01:19]}  Kf8 {[%clk 0:00:55]} 24. Bc6 {[%clk 0:01:03]}  Bxc3 {[%clk 0:00:35]} 25. d7 {[%clk 0:01:00]}  Ke7 {[%clk 0:00:35]} 26. Bc7 {[%clk 0:00:59]}  Bxd7 {[%clk 0:00:35]} 27. Bxd7 {[%clk 0:00:54]}  Kxd7 {[%clk 0:00:36]} 28. Bf4 {[%clk 0:00:54]}  Kc6 {[%clk 0:00:35]} 29. Ke2 {[%clk 0:00:54]}  Kd5 {[%clk 0:00:36]} 30. Kd3 {[%clk 0:00:54]}  Be5 {[%clk 0:00:35]} 0-1


[Site "https://www.chess.com"]